fUSD/lending_fUSD_20240425
["ID","MTS","AMOUNT","RATE_DAILY","PERIOD"]
[323542458,1714079469207,-500.0,0.0001178,2]
[323542459,1714079469217,-500.0,0.0001178,2]
[323542460,1714079469226,-500.0,0.0001178,2]
[323542461,1714079469235,-500.0,0.0001178,2]
[323542462,1714079469243,-500.0,0.0001178,2]
[323542463,1714079469253,-230.24640855,0.0001178,2]
[323542464,1714079469262,-1482.41,0.0001178,2]
[323542465,1714079469271,-500.0,0.0001178,2]
[323542466,1714079469279,-192.07505528,0.0001178,2]
[323542467,1714079469288,-500.0,0.0001178,2]
[323542468,1714079469297,-500.0,0.0001178,2]
[323542469,1714079469307,-500.0,0.0001178,2]
[323542470,1714079469316,-500.0,0.0001178,2]
[323542471,1714079469325,-236.33937671,0.0001178,2]
[323542472,1714079469336,-500.0,0.0001178,2]
[323542473,1714079469345,-500.0,0.0001178,2]
[323542474,1714079469354,-500.0,0.0001178,2]
[323542475,1714079469365,-500.0,0.0001178,2]
[323542476,1714079469374,-330.18,0.0001178,2]
[323542477,1714079469384,-500.0,0.0001178,2]
[323542478,1714079469392,-215.82557546,0.0001178,2]
[323542479,1714079469402,-500.0,0.0001178,2]
[323542480,1714079469412,-500.0,0.0001178,2]
[323542481,1714079469423,-500.0,0.0001178,2]
[323542482,1714079469433,-500.0,0.0001178,2]
[323542483,1714079469443,-500.0,0.0001178,2]
[323542484,1714079469452,-500.0,0.0001178,2]
[323542485,1714079469462,-500.0,0.0001178,2]
[323542486,1714079469472,-410.18414133,0.0001178,2]
[323542487,1714079469481,-500.0,0.0001178,2]
[323542488,1714079469491,-500.0,0.0001178,2]
[323542489,1714079469500,-500.0,0.0001178,2]
[323542490,1714079469510,-500.0,0.0001178,2]
[323542491,1714079469519,-566.21,0.0001178,2]
[323542492,1714079469527,-500.0,0.0001178,2]
[323542493,1714079469537,-632.84,0.0001178,2]
[323542494,1714079469547,-500.0,0.0001178,2]
[323542495,1714079469556,-500.0,0.0001178,2]
[323542496,1714079469566,-500.0,0.0001178,2]
[323542497,1714079469576,-615.99,0.0001178,2]
[323542498,1714079469586,-1365.62,0.0001178,2]
[323542499,1714079469596,-500.0,0.0001178,2]
[323542500,1714079469605,-500.0,0.0001178,2]
[323542501,1714079469614,-500.0,0.0001178,2]
[323542502,1714079469624,-278.71344293,0.0001178,2]
[323542503,1714079469634,-1378.89,0.0001178,2]
[323542504,1714079469644,-1472.38,0.0001178,2]
[323542505,1714079469654,-1761.36,0.0001178,2]
[323542506,1714079469664,-500.0,0.0001178,2]
[323542507,1714079469673,-500.0,0.0001178,2]
[323542508,1714079469683,-500.0,0.0001178,2]
[323542509,1714079469692,-863.61,0.0001178,2]
[323542510,1714079469701,-717.19,0.0001178,2]
[323542511,1714079469710,-500.0,0.0001178,2]
[323542512,1714079469719,-1609.92,0.0001178,2]
[323542513,1714079469730,-923.79,0.0001178,2]
[323542514,1714079469740,-564.51089894,0.0001178,2]
[323542515,1714079469750,-500.0,0.0001178,2]
[323542516,1714079469759,-500.0,0.0001178,2]
[323542517,1714079469769,-500.0,0.0001178,2]
[323542518,1714079469778,-500.0,0.0001178,2]
[323542519,1714079469787,-500.0,0.0001178,2]
[323542520,1714079469796,-500.0,0.0001178,2]
[323542521,1714079469805,-7355.74,0.0001178,2]
[323542522,1714079469815,-500.0,0.0001178,2]
[323542523,1714079469824,-500.0,0.0001178,2]
[323542524,1714079469834,-9420.93,0.0001178,2]
[323542525,1714079469844,-518.06273328,0.0001178,2]
[323542526,1714079469854,-577.19,0.0001178,2]
[323542527,1714079469863,-500.0,0.0001178,2]
[323542528,1714079469872,-500.0,0.0001178,2]
[323542529,1714079469881,-500.0,0.0001178,2]
[323542530,1714079469890,-4256.45,0.0001178,2]
[323542531,1714079469899,-500.0,0.0001178,2]
[323542532,1714079469909,-500.0,0.0001178,2]
[323542533,1714079469918,-500.0,0.0001178,2]
[323542534,1714079469927,-500.0,0.0001178,2]
[323542535,1714079469936,-500.0,0.0001178,2]
[323542536,1714079469946,-24807.6,0.0001178,2]
[323542537,1714079469955,-1271.39,0.0001178,2]
[323542538,1714079469965,-1270.84,0.0001178,2]
[323542539,1714079469974,-500.0,0.0001178,2]
[323542540,1714079469983,-611.6,0.0001178,2]
[323542541,1714079469994,-673.09,0.0001178,2]
[323542542,1714079470004,-500.0,0.0001178,2]
[323542543,1714079470013,-2357.01,0.0001178,2]
[323542544,1714079470022,-500.0,0.0001178,2]
[323542545,1714079470031,-500.0,0.0001178,2]
[323542546,1714079470040,-500.0,0.0001178,2]
[323542547,1714079470050,-2142.96,0.0001178,2]
[323542548,1714079470061,-1364.4,0.0001178,2]
[323542549,1714079470071,-500.0,0.0001178,2]
[323542550,1714079470082,-500.0,0.0001178,2]
[323542551,1714079470090,-500.0,0.0001178,2]
[323542552,1714079470099,-1778.83,0.0001178,2]
[323542553,1714079470108,-500.0,0.0001178,2]
[323542554,1714079470117,-2501.91,0.0001178,2]
[323542555,1714079470127,-500.0,0.0001178,2]
[323542556,1714079470136,-500.0,0.0001178,2]
[323542557,1714079470149,-1359.49,0.0001178,2]
[323542558,1714079470158,-2433.13,0.0001178,2]
[323542559,1714079470168,-2333.65,0.0001178,2]
[323542560,1714079470177,-221.85,0.0001178,2]
[323542561,1714079470186,-500.0,0.0001178,2]
[323542562,1714079470195,-501.67808095,0.0001178,2]
[323542563,1714079470204,-500.0,0.0001178,2]
[323542564,1714079470213,-500.0,0.0001178,2]
[323542565,1714079470224,-770.51,0.0001178,2]
[323542566,1714079470234,-561.15242684,0.0001178,2]
[323542567,1714079470245,-500.0,0.0001178,2]
[323542568,1714079470254,-3058.28,0.0001178,2]
[323542569,1714079470264,-500.0,0.0001178,2]
[323542570,1714079470273,-711.73,0.0001178,2]
[323542571,1714079470283,-500.0,0.0001178,2]
[323542572,1714079470292,-500.0,0.0001178,2]
[323542573,1714079470301,-500.0,0.0001178,2]
[323542574,1714079470311,-1470.78,0.0001178,2]
[323542575,1714079470321,-1883.18,0.0001178,2]
[323542576,1714079470331,-500.0,0.0001178,2]
[323542577,1714079470341,-500.0,0.0001178,2]
[323542578,1714079470350,-500.0,0.0001178,2]
[323542579,1714079470359,-500.0,0.0001178,2]
[323542580,1714079470368,-500.0,0.0001178,2]
[323542581,1714079470377,-500.0,0.0001178,2]
[323542582,1714079470386,-500.0,0.0001178,2]
[323542583,1714079470395,-784.75,0.0001178,2]
[323542584,1714079470404,-500.0,0.0001178,2]
[323542585,1714079470414,-883.8,0.0001178,2]
[323542586,1714079470554,-500.0,0.0001178,2]
[323542587,1714079470567,-892.7,0.0001178,2]
[323542588,1714079470577,-502.70080242,0.0001178,2]
[323542589,1714079470587,-500.0,0.0001178,2]
[323542590,1714079470596,-500.0,0.0001178,2]
[323542591,1714079470605,-1331.03,0.0001178,2]
[323542592,1714079470614,-305.21443504,0.0001178,2]
[323542593,1714079470623,-1182.4,0.0001178,2]
[323542594,1714079470635,-500.0,0.0001178,2]
[323542595,1714079470646,-400.2266155,0.0001178,2]
[323542596,1714079470657,-24239.67,0.0001178,2]
[323542597,1714079470667,-1060.67,0.0001178,2]
[323542598,1714079470676,-500.0,0.0001178,2]
[323542599,1714079470686,-2281.43,0.0001178,2]
[323542600,1714079470695,-1621.03,0.0001178,2]
[323542601,1714079470706,-500.0,0.0001178,2]
[323542602,1714079470715,-1355.33,0.0001178,2]
[323542603,1714079470726,-500.0,0.0001178,2]
[323542604,1714079470736,-500.0,0.0001178,2]
[323542605,1714079470746,-459.30115,0.0001178,2]
[323542606,1714079470757,-459.30115,0.0001178,2]
[323542607,1714079470769,-791.36,0.0001178,2]
[323542608,1714079470779,-1099.83,0.0001178,2]
[323542609,1714079470787,-500.0,0.0001178,2]
[323542610,1714079470797,-500.0,0.0001178,2]
[323542611,1714079470807,-500.0,0.0001178,2]
[323542612,1714079470817,-1498.73,0.0001178,2]
[323542613,1714079470826,-459.30115,0.0001178,2]
[323542614,1714079470838,-459.30115,0.0001178,2]
[323542615,1714079470847,-500.0,0.0001178,2]
[323542616,1714079470857,-413.14,0.0001178,2]
[323542617,1714079470866,-189.78,0.0001178,2]
[323542618,1714079470875,-3049.32,0.0001178,2]
[323542619,1714079470884,-500.0,0.0001178,2]
[323542620,1714079470894,-2357.14,0.0001178,2]
[323542621,1714079470904,-833.9,0.0001178,2]
[323542622,1714079470915,-500.0,0.0001178,2]
[323542623,1714079470924,-500.0,0.0001178,2]
[323542624,1714079470934,-852.88,0.0001178,2]
[323542625,1714079470944,-180.67750437,0.0001178,2]
[323542626,1714079470957,-500.0,0.0001178,2]
[323542627,1714079470966,-1372.85,0.0001178,2]
[323542628,1714079470975,-500.0,0.0001178,2]
[323542629,1714079470985,-640.73,0.0001178,2]
[323542630,1714079470996,-500.0,0.0001178,2]
[323542631,1714079471007,-972.48,0.0001178,2]
[323542632,1714079471016,-759.26,0.0001178,2]
[323542633,1714079471026,-500.0,0.0001178,2]
[323542634,1714079471035,-500.0,0.0001178,2]
[323542635,1714079471045,-984.82,0.0001178,2]
[323542636,1714079471054,-2723.41,0.0001178,2]
[323542637,1714079471063,-500.0,0.0001178,2]
[323542638,1714079471072,-5700.22,0.0001178,2]
[323542639,1714079471082,-500.0,0.0001178,2]
[323542640,1714079471091,-1003.68,0.0001178,2]
[323542641,1714079471101,-1144.78,0.0001178,2]
[323542642,1714079471111,-1711.68,0.0001178,2]
[323542643,1714079471120,-500.0,0.0001178,2]
[323542644,1714079471129,-500.0,0.0001178,2]
[323542645,1714079471139,-500.0,0.0001178,2]
[323542646,1714079471150,-3553.91,0.0001178,2]
[323542647,1714079471159,-841.83,0.0001178,2]
[323542648,1714079471169,-1532.05,0.0001178,2]
[323542649,1714079471178,-500.0,0.0001178,2]
[323542650,1714079471188,-4466.15,0.0001178,2]
[323542651,1714079471197,-500.0,0.0001178,2]
[323542652,1714079471206,-4094.61,0.0001178,2]
[323542653,1714079471215,-6226.21,0.0001178,2]
[323542654,1714079471225,-941.66,0.0001178,2]
[323542655,1714079471235,-500.0,0.0001178,2]
[323542656,1714079471244,-723.29,0.0001178,2]
[323542657,1714079471254,-500.0,0.0001178,2]
[323542658,1714079471263,-500.0,0.0001178,2]
[323542659,1714079471272,-500.0,0.0001178,2]
[323542660,1714079471282,-500.0,0.0001178,2]
[323542661,1714079471292,-931.65,0.0001178,2]
[323542662,1714079471301,-1405.65,0.0001178,2]
[323542663,1714079471310,-1351.72,0.0001178,2]
[323542664,1714079471320,-585.14,0.0001178,2]
[323542665,1714079471330,-500.0,0.0001178,2]
[323542666,1714079471339,-528.9,0.0001178,2]
[323542667,1714079471348,-4293.85,0.0001178,2]
[323542668,1714079471357,-1262.4,0.0001178,2]
[323542669,1714079471366,-1255.4,0.0001178,2]
[323542670,1714079471376,-1364.78,0.0001178,2]
[323542671,1714079471385,-500.0,0.0001178,2]
[323542672,1714079471394,-4221.53,0.0001178,2]
[323542673,1714079471404,-1030.13,0.0001178,2]
[323542674,1714079471413,-1373.97,0.0001178,2]
[323542675,1714079471423,-770.54,0.0001178,2]
[323542676,1714079471432,-500.0,0.0001178,2]
[323542677,1714079471442,-500.0,0.0001178,2]
[323542678,1714079471451,-256.44522037,0.0001178,2]
[323542679,1714079471460,-580.79,0.0001178,2]
[323542680,1714079471469,-832.8,0.0001178,2]
[323542681,1714079471479,-1430.02,0.0001178,2]
[323542682,1714079471488,-517.29033168,0.0001178,2]
[323542683,1714079471498,-500.0,0.0001178,2]
[323542684,1714079471510,-1606.92,0.0001178,2]
[323542685,1714079471520,-504.25,0.0001178,2]
[323542686,1714079471529,-500.0,0.0001178,2]
[323542687,1714079471538,-500.0,0.0001178,2]
[323542688,1714079471549,-509.15,0.0001178,2]
[323542689,1714079471558,-500.0,0.0001178,2]
[323542690,1714079471568,-1426.71,0.0001178,2]
[323542691,1714079471578,-500.0,0.0001178,2]
[323542692,1714079471588,-850.34,0.0001178,2]
[323542693,1714079471597,-500.0,0.0001178,2]
[323542694,1714079471607,-2021.5,0.0001178,2]
[323542695,1714079471616,-500.0,0.0001178,2]
[323542696,1714079471625,-2499.55,0.0001178,2]
[323542697,1714079471637,-500.0,0.0001178,2]
[323542698,1714079471646,-2660.73,0.0001178,2]
[323542699,1714079471656,-793.34,0.0001178,2]
[323542700,1714079471666,-500.0,0.0001178,2]
[323542701,1714079471675,-500.0,0.0001178,2]
[323542702,1714079471685,-609.21,0.0001178,2]
[323542703,1714079471694,-500.0,0.0001178,2]
[323542704,1714079471703,-678.64,0.0001178,2]
[323542705,1714079471713,-500.0,0.0001178,2]
[323542706,1714079471722,-691.29,0.0001178,2]
[323542707,1714079471732,-1077.99,0.0001178,2]
[323542708,1714079471741,-3547.14,0.0001178,2]
[323542709,1714079471751,-1503.27,0.0001178,2]
[323542710,1714079471760,-500.0,0.0001178,2]
[323542711,1714079471769,-2953.99,0.0001178,2]
[323542712,1714079471779,-500.0,0.0001178,2]
[323542713,1714079471788,-151.0,0.0001178,2]
[323542714,1714079471797,-500.0,0.0001178,2]
[323542715,1714079471806,-2293.86,0.0001178,2]
[323542716,1714079471816,-4231.07,0.0001178,2]
[323542717,1714079471826,-1881.77,0.0001178,2]
[323542718,1714079471835,-745.48,0.0001178,2]
[323542719,1714079471845,-594.71,0.0001178,2]
[323542720,1714079471854,-5108.11,0.0001178,2]
[323542721,1714079471863,-282.09,0.0001178,2]
[323542722,1714079471873,-1261.69,0.0001178,2]
[323542723,1714079471882,-500.0,0.0001178,2]
[323542724,1714079471892,-4174.07,0.0001178,2]
[323542725,1714079471901,-500.0,0.0001178,2]
[323542726,1714079471910,-500.0,0.0001178,2]
[323542727,1714079471920,-581.79,0.0001178,2]
[323542728,1714079471929,-500.0,0.0001178,2]
[323542729,1714079471938,-1617.84,0.0001178,2]
[323542730,1714079471948,-1135.57,0.0001178,2]
[323542731,1714079471957,-1982.29,0.0001178,2]
[323542732,1714079471966,-1332.35,0.0001178,2]
[323542733,1714079471975,-500.0,0.0001178,2]
[323542734,1714079471985,-1456.8,0.0001178,2]
[323542735,1714079471995,-1820.15,0.0001178,2]
[323542736,1714079472004,-753.84,0.0001178,2]
[323542737,1714079472014,-538.94,0.0001178,2]
[323542738,1714079472023,-500.0,0.0001178,2]
[323542739,1714079472032,-500.0,0.0001178,2]
[323542740,1714079472041,-3053.45,0.0001178,2]
[323542741,1714079472051,-500.0,0.0001178,2]
[323542742,1714079472059,-500.0,0.0001178,2]
[323542743,1714079472069,-500.0,0.0001178,2]
[323542744,1714079472078,-435.28,0.0001178,2]
[323542745,1714079472089,-161.61693122,0.0001179,2]
[323542746,1714079472098,-560.20245117,0.0001179,2]
[323542747,1714079472107,-500.0,0.00011798,2]
[323542748,1714079472116,-150.0,0.00011798,2]
[323542749,1714079472126,-1000.0,0.000118,4]
[323542750,1714079472135,-150.0,0.00011836,2]
[323542751,1714079472146,-150.0,0.00011836,2]
[323542752,1714079472156,-150.0,0.00011865,2]
[323542753,1714079472166,-150.0,0.00011873,2]
[323542754,1714079472176,-731.33095273,0.0001189,2]
[323542755,1714079472185,-500.0,0.00011899,2]
[323542756,1714079472195,-170.37774008,0.000119,2]
[323542757,1714079472204,-263.9836,0.000119,2]
[323542758,1714079472214,-10000.0,0.000119,2]
[323542759,1714079472223,-50941.80127125,0.000119,2]
[323542760,1714079472233,-6011.97023734,0.000119,2]
[323542761,1714079472243,-1000.0,0.000119,4]
[323542762,1714079472252,-161.61693122,0.000119,2]
[323542763,1714079472262,-560.20245117,0.000119,2]
[323542764,1714079472272,-160.5,0.000119,4]
[323542765,1714079472281,-1000.0,0.00011904,2]
[323542766,1714079472291,-500.0,0.00011904,2]
[323542767,1714079472300,-970.0,0.00011908,2]
[323542768,1714079472309,-1394.0,0.00011908,2]
[323542769,1714079472319,-462.0,0.00011908,2]
[323542770,1714079472329,-2296.0,0.00011908,2]
[323542771,1714079472340,-150.0,0.00011918,2]
[323542772,1714079472349,-6011.97023733,0.00011945,2]
[323542773,1714079472358,-150.0,0.00011957,2]
[323542774,1714079472367,-150.0,0.00011961,2]
[323542775,1714079472377,-738.0605344,0.00011989,2]
[323542776,1714079472386,-6053.2230939,0.00011989,2]
[323542777,1714079472395,-1917.8294279,0.00011989,2]
[323542778,1714079472405,-6011.97023733,0.00011991,2]
[323542779,1714079472414,-683.5213147,0.00011992,2]
[323542780,1714079472423,-628.982095,0.00011992,2]
[323542781,1714079472433,-574.4428754,0.00011992,2]
[323542782,1714079472443,-519.9036557,0.00011992,2]
[323542783,1714079472451,-5595.0352327,0.00011992,2]
[323542784,1714079472460,-5136.8473714,0.00011992,2]
[323542785,1714079472469,-4678.6595102,0.00011992,2]
[323542786,1714079472478,-4220.471649,0.00011992,2]
[323542787,1714079472488,-150.0,0.00011992,2]
[323542788,1714079472497,-2123.2277926,0.00011992,2]
[323542789,1714079472506,-2328.6261573,0.00011992,2]
[323542790,1714079472515,-2534.024522,0.00011992,2]
[323542791,1714079472524,-2739.4228867,0.00011992,2]
[323542792,1714079472533,-500.0,0.00011997,2]
[323542793,1714079472670,-2321.35455575,0.00011998,2]
[323542794,1714079472682,-404.76437198,0.00011998,2]
[323542795,1714079472691,-500.0,0.00011999,2]
[323542796,1714079472700,-500.0,0.00011999,2]
[323542797,1714079472710,-576.46,0.00011999,2]
[323542798,1714079472719,-500.0,0.00011999,2]
[323542799,1714079472729,-249.7320373,0.00011999,2]
[323542800,1714079472738,-3537173.53346202,0.00012,2]
[323542801,1714079473270,-1702.20964643,0.00012,2]
[323542802,1714079473281,-1266.48468899,0.00012,2]
[323542803,1714079473292,-421.399227,0.00012,2]
[323542804,1714079473303,-6128.0,0.00012,2]
[323542805,1714079473314,-494.72760592,0.00012,2]
[323542806,1714079473351,-20.4633281,0.00012,2]
[323542807,1714079473386,-500.0,0.00010958,2]
[323542808,1714079473396,-4222.76454072,0.00012,2]
[323542809,1714079473730,-500.0,0.00010958,2]
[323542810,1714079473740,-1590.65,0.00010958,2]
[323542811,1714079473750,-500.0,0.00010958,2]
[323542812,1714079473759,-564.75992857,0.00010958,2]
[323542813,1714079473769,-500.0,0.00011232,2]
[323542814,1714079473778,-500.0,0.00011232,2]
[323542815,1714079473787,-1590.65,0.00011232,2]
[323542816,1714079473796,-500.0,0.00011232,2]
[323542817,1714079473806,-500.0,0.00011506,2]
[323542818,1714079473815,-581.24379576,0.00011506,2]
[323542819,1714079473824,-500.0,0.00011506,2]
[323542820,1714079473835,-1590.65,0.00011506,2]
[323542821,1714079473843,-500.0,0.00011506,2]
[323542822,1714079473852,-500.0,0.0001178,2]
[323542823,1714079473862,-500.0,0.0001178,2]
[323542824,1714079474016,-1590.65,0.0001178,2]
[323542825,1714079474027,-500.0,0.0001178,2]
[323542826,1714079474036,-194319.58256097,0.00012,2]
[323542827,1714079474049,-45649.28707285,0.00012,2]
[323542828,1714079474068,-560.58454009,0.00012,2]
[323542829,1714079474083,-3969.32580454,0.00012,2]
[323542830,1714079474095,-382.37,0.00012,2]
[323542831,1714079474106,-3138.91050702,0.00012,2]
[323542832,1714079474125,-2100.76052199,0.00012,2]
[323542833,1714079474135,-656.83883371,0.00012,2]
[323542834,1714079474153,-6625.51147268,0.00012,2]
[323542835,1714079474190,-848.067256,0.00012,2]
[323542836,1714079474201,-976.68977929,0.00012,2]
[323542837,1714079474213,-563.96311532,0.00012,2]
[323542838,1714079474268,-3071.00803848,0.00012,2]
[323542839,1714079474725,-500.0,0.00010958,2]
[323542840,1714079474740,-191.45734622,0.00010958,2]
[323542841,1714079474762,-308.54265378,0.00010958,2]
[323542842,1714079474778,-202.20660029,0.00011132,2]
[323542843,1714079474796,-500.0,0.00011232,2]
[323542844,1714079474813,-70.89498113,0.00011232,2]
[323542845,1714079474832,-429.10501887,0.00011232,2]
[323542846,1714079474851,-500.0,0.00011506,2]
[323542847,1714079474867,-582.68006258,0.0001188,2]
[323542848,1714079476324,-335.25000385,0.00010858,2]
[323542849,1714079476337,-7164.74999615,0.00010858,2]
[323542850,1714079476346,-213.61622922,0.00010957,2]
[323542851,1714079476356,-500.0,0.00010958,2]
[323542852,1714079476365,-500.0,0.00010958,2]
[323542853,1714079476374,-500.0,0.00010958,2]
[323542854,1714079476383,-500.0,0.00010958,2]
[323542855,1714079476392,-500.0,0.00010958,2]
[323542856,1714079476402,-500.0,0.00010958,2]
[323542857,1714079476413,-150.99,0.00011189,2]
[323542858,1714079476424,-500.0,0.00011232,2]
[323542859,1714079476434,-618.36773115,0.00011232,2]
[323542860,1714079476445,-500.0,0.00011232,2]
[323542861,1714079476454,-293.45,0.00011232,2]
[323542862,1714079476464,-500.0,0.00011232,2]
[323542863,1714079476475,-500.0,0.00011506,2]
[323542864,1714079476486,-500.0,0.00011506,2]
[323542865,1714079476495,-293.09415426,0.00011506,2]
[323542866,1714079476505,-500.0,0.0001178,2]
[323542867,1714079476516,-500.0,0.0001178,2]
[323542868,1714079476526,-334.16936624,0.0001178,2]
[323542869,1714079476536,-2417.31993742,0.0001188,2]
[323542870,1714079476546,-83488.62419679,0.00012,2]
[323542871,1714079476560,-1744.53450183,0.00012,2]
[323542872,1714079476574,-35668.15628408,0.00012,2]
[323542873,1714079476585,-14970.16065043,0.00012,2]
[323542874,1714079476598,-352.7727058,0.00012,2]
[323542875,1714079476627,-295.12565298,0.00010957,2]
[323542876,1714079485918,-307.99923015,0.00010957,2]
[323542877,1714079800848,150.0,8.484e-05,2]
[323542878,1714079800869,225.07074949,8.484e-05,2]
[323542879,1714079800893,582.80925051,8.484e-05,2]
[323542880,1714080342995,181.26805417,0.00023,120]
[323542881,1714080344748,150.0,8.332e-05,2]
[323542882,1714080344770,157.99923015,8.332e-05,2]
[323542883,1714080344792,601.98076985,8.332e-05,2]
[323542884,1714080383230,607.99923015,6.787e-05,2]
[323542885,1714080399688,181.26805417,0.00023,120]
[323542886,1714080510052,181.26805417,0.000259,120]
[323542887,1714080606012,181.26805417,0.000256,120]
[323542905,1714080631631,-1061.01702893,8.721e-05,2]
[323542906,1714080631640,-527.07691918,8.722e-05,2]
[323542907,1714080631650,-5777.04760435,8.726e-05,2]
[323542908,1714080631659,-150.0,0.00010199,2]
[323542909,1714080631668,-8137.27,0.000102,2]
[323542910,1714080631678,-166.13,0.00010216,2]
[323542911,1714080631687,-866.96,0.00010238,2]
[323542912,1714080631697,-2062.89,0.00010278,2]
[323542913,1714080631706,-250.0,0.00010279,2]
[323542914,1714080631715,-150.99,0.00010279,2]
[323542915,1714080631725,-6982.66,0.00010279,2]
[323542916,1714080631734,-499.99,0.00010279,2]
[323542917,1714080631743,-150.0,0.00010578,2]
[323542918,1714080631753,-4823.72,0.00010578,2]
[323542919,1714080631763,-909.98,0.00010596,2]
[323542920,1714080631772,-99.26844754,0.00010858,2]
[323542921,1714080631817,-9900.73155246,0.00010858,2]
[323542922,1714080631827,-667.0206,0.00010858,2]
[323542923,1714080631836,-5922.9229,0.00010858,2]
[323542924,1714080631846,-1000.0,0.00010858,2]
[323542925,1714080631855,-15880.0044,0.00010858,2]
[323542926,1714080631865,-366.9484,0.00010858,2]
[323542927,1714080631875,-772.9118,0.00010858,2]
[323542928,1714080631885,-13928.0812,0.00010858,2]
[323542929,1714080631895,-3336.1821,0.00010858,2]
[323542930,1714080631905,-263.9836,0.00010858,2]
[323542931,1714080631914,-4526.5188,0.00010858,2]
[323542932,1714080631924,-2010.499,0.00010858,2]
[323542933,1714080631934,-7500.0,0.00010858,2]
[323542934,1714080631943,-1000.0,0.00010858,2]
[323542935,1714080631963,-447.85,0.00010957,2]
[323542936,1714080631981,-501.86001043,0.00010958,2]
[323542937,1714080631994,-500.0,0.00010958,2]
[323542938,1714080632010,-500.0,0.00010958,2]
[323542940,1714080632027,-500.0,0.00010958,2]
[323542941,1714080632042,-500.0,0.00010958,2]
[323542942,1714080632055,-444.05092147,0.00010958,2]
[323542943,1714080632070,-463.90445809,0.00010958,2]
[323542944,1714080632086,-500.0,0.00010958,2]
[323542945,1714080632102,-500.0,0.00010958,2]
[323542946,1714080632114,-500.0,0.00010958,2]
[323542947,1714080632131,-500.0,0.00010958,2]
[323542948,1714080632147,-500.61237865,0.00010958,2]
[323542949,1714080632162,-500.0,0.00010958,2]
[323542950,1714080632175,-500.0,0.00010958,2]
[323542951,1714080632189,-500.0,0.00010958,2]
[323542952,1714080632206,-575.4,0.00010958,2]
[323542953,1714080632223,-500.0,0.00010958,2]
[323542954,1714080632237,-500.0,0.00010958,2]
[323542955,1714080632248,-500.0,0.00010958,2]
[323542956,1714080632262,-500.0,0.00010958,2]
[323542957,1714080632276,-416.42979609,0.00010958,2]
[323542958,1714080632292,-1193.78,0.00010958,2]
[323542959,1714080632305,-500.0,0.00010958,2]
[323542960,1714080632316,-500.0,0.00010958,2]
[323542961,1714080632335,-500.0,0.00010958,2]
[323542962,1714080632349,-500.0,0.00010958,2]
[323542963,1714080632363,-500.0,0.00010958,2]
[323542964,1714080632376,-500.0,0.00010958,2]
[323542965,1714080632389,-534.39606197,0.00010958,2]
[323542966,1714080632404,-500.0,0.00010958,2]
[323542967,1714080632417,-502.4940036,0.00010958,2]
[323542968,1714080632432,-500.0,0.00010958,2]
[323542969,1714080632446,-1181.38,0.00010958,2]
[323542970,1714080632459,-500.0,0.00010958,2]
[323542971,1714080632472,-500.0,0.00010958,2]
[323542972,1714080632486,-500.0,0.00010958,2]
[323542973,1714080632499,-500.0,0.00010958,2]
[323542974,1714080632514,-500.0,0.00010958,2]
[323542975,1714080632527,-500.0,0.00010958,2]